lending/lending_fUSD_20240110
["ID","MTS","AMOUNT","RATE_DAILY","PERIOD"]
[311121328,1704919843493,-151.4637772,0.00038152,2]
[311121330,1704919843502,-115722.8974,0.00038153,2]
[311121332,1704919843512,-1000.0,0.00038153,2]
[311121334,1704919843524,-367.5,0.00038172,2]
[311121337,1704919843724,-155.2696412,0.00038178,7]
[311121338,1704919843734,-3025.0,0.0003819,3]
[311121339,1704919843744,-313.44466476,0.00038216,2]
[311121340,1704919843753,-3416.30668272,0.00038233,2]
[311121341,1704919843762,-69245.7736706,0.00038233,10]
[311121342,1704919843774,-250.0,0.0003824,2]
[311121343,1704919843784,-89420.46364129,0.00038242,2]
[311121344,1704919843805,-8106.00517271,0.00038242,2]
[311121345,1704919843822,-1707.62140578,0.00038242,2]
[311121346,1704919843834,-1512.52129122,0.00038242,2]
[311121347,1704919843843,-312.18171241,0.00038243,2]
[311121348,1704919843859,-458.0,0.00038243,2]
[311121349,1704919843870,-2055.18896546,0.00038243,2]
[311121350,1704919843882,-91289.67832234,0.00038243,2]
[311121351,1704919843901,-1713.50918264,0.00038243,2]
[311121352,1704919843914,-658.38525432,0.00038243,2]
[311121353,1704919843929,-4234.32501617,0.00038243,2]
[311121354,1704919843991,-3024.7,0.000288,2]
[311121355,1704919844001,-199.592,0.0003535,2]
[311121356,1704919844010,-25.34305766,0.00038243,2]
[311121357,1704919844021,-800.0,0.00038247,2]
[311121358,1704919844030,-595.45963042,0.00038252,2]
[311121359,1704919844041,-799.55014541,0.00038252,2]
[311121360,1704919844052,-9873.48534953,0.00038252,2]
[311121361,1704919844062,-353.83966151,0.00038254,4]
[311121362,1704919844071,-155.0,0.00038254,4]
[311121363,1704919844080,-310.12290854,0.00038254,4]
[311121364,1704919844089,-345.85500401,0.00038254,4]
[311121365,1704919844100,-4745.06886019,0.00038254,4]
[311121366,1704919844109,-1061.10528695,0.00038254,2]
[311121367,1704919844118,-262.06194607,0.00038254,4]
[311121368,1704919844127,-201.30584594,0.00038254,4]
[311121369,1704919844137,-270.2166863,0.00038254,2]
[311121370,1704919844146,-1047.91243501,0.00038255,4]
[311121371,1704919844155,-5000.0,0.00038256,2]
[311121372,1704919844164,-46165.79052291,0.00038256,3]
[311121373,1704919844279,-3008.1399226,0.00038256,3]
[311121374,1704919844291,-6381.06955449,0.00038256,3]
[311121375,1704919844300,-153.22453527,0.00038268,7]
[311121376,1704919844310,-31268.53208574,0.00038346,2]
[311121377,1704919844325,-2300.43940855,0.00038346,2]
[311121378,1704919844336,-3700.38601426,0.00038346,2]
[311121379,1704919844348,-716.11498094,0.00038346,2]
[311121380,1704919844359,-2296.15,0.00038346,2]
[311121387,1704919846073,-251.06504272,0.00028799,2]
[311121388,1704919846144,-711.12916427,0.00028799,2]
[311121389,1704919846319,-3757.47830369,0.00028799,2]
[311121390,1704919846328,-836.67,0.00035332,10]
[311121391,1704919846337,-880.58774811,0.00038256,2]
[311121392,1704919846347,-60464.98902151,0.00038346,2]
[311121393,1704919846356,-150.0,0.0003835,2]
[311121394,1704919846366,-150.0,0.0003835,2]
[311121395,1704919846375,-150.0,0.0003835,2]
[311121396,1704919846386,-409.99873322,0.00038354,2]
[311121397,1704919846396,-914.67237614,0.00038354,4]
[311121398,1704919846406,-561.21087627,0.00038354,4]
[311121399,1704919846414,-230.17403764,0.00038354,4]
[311121400,1704919846424,-507.39076117,0.00038355,4]
[311121401,1704919846434,-1000.0,0.00038356,2]
[311121402,1704919846444,-500.0,0.00038356,4]
[311121403,1704919846453,-216.88738839,0.00038356,4]
[311121404,1704919846462,-500.0,0.00038356,4]
[311121405,1704919846471,-500.0,0.00038356,4]
[311121407,1704919846480,-308.82,0.00038356,4]
[311121409,1704919846489,-500.0,0.00038356,4]
[311121411,1704919846498,-500.0,0.00038356,4]
[311121413,1704919846507,-500.0,0.00038356,4]
[311121414,1704919846516,-575.96528646,0.00038356,4]
[311121415,1704919846527,-500.0,0.00038356,4]
[311121416,1704919846536,-500.0,0.00038356,4]
[311121417,1704919846548,-500.0,0.00038356,4]
[311121418,1704919846558,-446.61958828,0.00038356,4]
[311121419,1704919846567,-599.12,0.00038356,4]
[311121420,1704919846579,-220.47747085,0.00038356,4]
[311121421,1704919846588,-500.0,0.00038356,4]
[311121422,1704919846597,-500.0,0.00038356,4]
[311121423,1704919846606,-469.76,0.00038356,4]
[311121424,1704919846616,-500.0,0.00038356,4]
[311121425,1704919846625,-500.0,0.00038356,4]
[311121426,1704919846634,-500.0,0.00038356,4]
[311121427,1704919846643,-500.0,0.00038356,2]
[311121428,1704919846652,-500.0,0.00038356,4]
[311121429,1704919846662,-248.44,0.00038356,4]
[311121430,1704919846671,-511.38806426,0.00038356,4]
[311121431,1704919846681,-500.0,0.00038356,7]
[311121432,1704919846690,-500.0,0.00038356,4]
[311121433,1704919846699,-500.0,0.00038356,4]
[311121434,1704919846709,-500.0,0.00038356,4]
[311121435,1704919846718,-500.0,0.00038356,4]
[311121436,1704919846728,-500.0,0.00038356,4]
[311121437,1704919846737,-500.0,0.00038356,4]
[311121438,1704919846746,-500.0,0.00038356,4]
[311121439,1704919846756,-462.22773765,0.00038356,4]
[311121440,1704919846765,-500.0,0.00038356,4]
[311121441,1704919846778,-500.0,0.00038356,4]
[311121442,1704919846787,-500.0,0.00038356,4]
[311121443,1704919846797,-500.0,0.00038356,4]
[311121444,1704919846806,-500.0,0.00038356,4]
[311121445,1704919846816,-388.39750776,0.00038356,4]
[311121446,1704919846825,-500.0,0.00038356,4]
[311121447,1704919846834,-581.41207058,0.00038356,4]
[311121448,1704919846844,-500.0,0.00038356,4]
[311121449,1704919846856,-500.0,0.00038356,4]
[311121450,1704919846866,-500.0,0.00038356,4]
[311121452,1704919846874,-500.0,0.00038356,4]
[311121453,1704919846884,-500.0,0.00038356,4]
[311121454,1704919846893,-500.0,0.00038356,4]
[311121455,1704919846903,-500.0,0.00038356,4]
[311121456,1704919846912,-619.02,0.00038356,4]
[311121457,1704919846921,-500.0,0.00038356,4]
[311121458,1704919846930,-500.0,0.00038356,4]
[311121459,1704919846939,-500.0,0.00038356,4]
[311121460,1704919846948,-500.0,0.00038356,2]
[311121461,1704919846957,-560.07996802,0.00038356,4]
[311121462,1704919846966,-500.0,0.00038356,4]
[311121463,1704919846975,-500.0,0.00038356,4]
[311121464,1704919846985,-500.0,0.00038356,4]
[311121465,1704919846994,-500.0,0.00038356,4]
[311121466,1704919847003,-500.0,0.00038356,4]
[311121467,1704919847013,-500.0,0.00038356,4]
[311121468,1704919847026,-156.23001202,0.00038356,4]
[311121469,1704919847036,-500.0,0.00038356,2]
[311121470,1704919847044,-500.0,0.00038356,4]
[311121471,1704919847053,-613.5,0.00038356,4]
[311121472,1704919847062,-212.1,0.00038356,4]
[311121473,1704919847072,-500.0,0.00038356,4]
[311121474,1704919847081,-500.0,0.00038356,4]
[311121475,1704919847090,-500.0,0.00038356,4]
[311121476,1704919847099,-500.0,0.00038356,4]
[311121477,1704919847109,-666.0,0.00038356,2]
[311121478,1704919847118,-583.93,0.00038356,4]
[311121479,1704919847127,-500.0,0.00038356,4]
[311121480,1704919847136,-500.0,0.00038356,4]
[311121481,1704919847145,-500.0,0.00038356,4]
[311121482,1704919847156,-500.0,0.00038356,4]
[311121483,1704919847165,-500.0,0.00038356,4]
[311121484,1704919847174,-500.0,0.00038356,4]
[311121485,1704919847184,-500.0,0.00038356,4]
[311121486,1704919847193,-500.0,0.00038356,4]
[311121487,1704919847203,-500.0,0.00038356,4]
[311121488,1704919847212,-628.44,0.00038356,4]
[311121489,1704919847222,-500.0,0.00038356,4]
[311121490,1704919847231,-358.2359881,0.00038356,4]
[311121491,1704919847240,-500.0,0.00038356,4]
[311121492,1704919847250,-500.0,0.00038356,4]
[311121493,1704919847259,-500.0,0.00038356,4]
[311121494,1704919847273,-500.0,0.00038356,4]
[311121495,1704919847282,-500.0,0.00038356,4]
[311121496,1704919847291,-519.07,0.00038356,4]
[311121497,1704919847301,-500.0,0.00038356,4]
[311121498,1704919847310,-500.0,0.00038356,4]
[311121499,1704919847319,-500.0,0.00038356,4]
[311121500,1704919847329,-500.0,0.00038356,4]
[311121501,1704919847338,-939.32,0.00038356,4]
[311121502,1704919847347,-330.50706174,0.00038356,4]
[311121503,1704919847356,-500.0,0.00038356,4]
[311121504,1704919847366,-494.59687715,0.00038356,4]
[311121505,1704919847384,-5.40312285,0.00038356,4]
[311121506,1704919847393,-500.0,0.00038356,4]
[311121507,1704919847402,-500.0,0.00038356,4]
[311121508,1704919847411,-234.94687715,0.00038356,4]
[311121509,1704919847430,-265.05312285,0.00038356,4]
[311121510,1704919847439,-500.0,0.00038356,2]
[311121511,1704919847448,-1654.64,0.00038356,4]
[311121512,1704919847457,-500.0,0.00038356,4]
[311121513,1704919847466,-176.41929614,0.00038356,4]
[311121514,1704919847478,-87.00346812,0.00038356,4]
[311121515,1704919847487,-500.0,0.00038356,4]
[311121516,1704919847496,-642.11,0.00038356,4]
[311121517,1704919847505,-836.81,0.00038356,4]
[311121518,1704919847515,-632.45,0.00038356,4]
[311121519,1704919847528,-500.0,0.00038356,4]
[311121520,1704919847537,-573.64,0.00038356,4]
[311121521,1704919847546,-500.0,0.00038356,4]
[311121522,1704919847555,-500.0,0.00038356,4]
[311121523,1704919847564,-500.0,0.00038356,4]
[311121524,1704919847574,-647.85,0.00038356,4]
[311121525,1704919847584,-500.0,0.00038356,4]
[311121526,1704919847593,-230.31665233,0.00038356,4]
[311121527,1704919847602,-500.0,0.00038356,4]
[311121528,1704919847612,-500.0,0.00038356,4]
[311121529,1704919847622,-885.68,0.00038356,4]
[311121530,1704919847631,-660.38,0.00038356,4]
[311121531,1704919847640,-458.93629191,0.00038356,4]
[311121532,1704919847649,-500.0,0.00038356,4]
[311121533,1704919847658,-500.0,0.00038356,4]
[311121534,1704919847668,-500.0,0.00038356,4]
[311121535,1704919847677,-500.0,0.00038356,4]
[311121536,1704919847687,-611.75733577,0.00038356,4]
[311121537,1704919847697,-500.0,0.00038356,4]
[311121538,1704919847706,-500.0,0.00038356,4]
[311121539,1704919847716,-751.94,0.00038356,4]
[311121540,1704919847725,-500.0,0.00038356,4]
[311121541,1704919847735,-842.33,0.00038356,4]
[311121542,1704919847744,-500.0,0.00038356,4]
[311121543,1704919847754,-85.21629321,0.00038356,4]
[311121566,1704920466021,-160.39254113,0.000227,2]
[311121567,1704920466045,-3140.47732294,0.00022799,2]
[311121568,1704920466077,-881.02968103,0.000228,2]
[311121569,1704920466103,-3723.0116,0.000228,2]
[311121570,1704920466125,-2095.0888549,0.000228,2]
[311121581,1704920527649,-404.9111451,0.000228,2]
[311121582,1704920527670,-767.02885511,0.0002289,2]
[311121583,1704920527691,-217.69682152,0.0002289,2]
[311121584,1704920527712,-1610.36317827,0.00022897,2]
[311121606,1704921032236,-587.05849874,0.00022699,2]
[311121607,1704921032246,-200.84028538,0.00022783,2]
[311121608,1704921032256,-1645.13521506,0.00022796,2]
[311121609,1704921032268,-1495.34210788,0.00022796,2]
[311121610,1704921032277,-1016.17907175,0.00022797,2]
[311121611,1704921032288,-627.90423763,0.00022797,2]
[311121612,1704921032300,-1256.83783323,0.00022797,2]
[311121613,1704921032308,-152.98373423,0.00022798,2]
[311121614,1704921032318,-152.98373423,0.00022798,2]
[311121615,1704921032328,-152.98373423,0.00022798,2]
[311121616,1704921032337,-152.98373423,0.00022798,2]
[311121617,1704921032347,-152.98373423,0.00022798,2]
[311121618,1704921032356,-152.98373423,0.00022798,2]
[311121619,1704921032366,-152.98373423,0.00022798,2]
[311121620,1704921032375,-152.98373423,0.00022798,2]
[311121621,1704921032384,-152.98373423,0.00022798,2]
[311121622,1704921032397,-152.98373423,0.00022798,2]
[311121623,1704921032407,-152.98373423,0.00022798,2]
[311121624,1704921032416,-152.98373423,0.00022798,2]
[311121625,1704921032425,-152.98373423,0.00022798,2]
[311121626,1704921032434,-152.98373423,0.00022798,2]
[311121627,1704921032448,-152.98373423,0.00022798,2]
[311121628,1704921032457,-152.98373423,0.00022798,2]
[311121629,1704921032467,-152.98373423,0.00022798,2]
[311121630,1704921032477,-152.98373423,0.00022798,2]
[311121631,1704921032486,-152.98373423,0.00022798,2]
[311121632,1704921032495,-152.98373423,0.00022798,2]
[311121633,1704921032505,-152.98373423,0.00022798,2]
[311121634,1704921032514,-152.98373423,0.00022798,2]
[311121635,1704921032524,-1224.74880004,0.00022798,2]
[311121636,1704921032540,-5029.3133496,0.00022798,2]
[311121637,1704921032552,-510.98825824,0.00022798,2]
[311121638,1704921032563,-708.59116417,0.00022798,2]
[311121639,1704921032575,-4416.22467759,0.00022798,2]
[311121649,1704921034142,-4616.5146,0.00022798,2]
[311121652,1704921034155,-26095.19310937,0.00022798,2]
[311121656,1704921034175,-3129.44071183,0.00022798,2]
[311121659,1704921034195,-5675.43919867,0.00022798,2]
[311121661,1704921034207,-478.97186855,0.00022798,2]
[311121692,1704921037710,9952.967,0.00021918,2]
[311121703,1704921038261,-1847.37738,0.00022798,2]
[311121704,1704921038333,-500.75797433,0.00022798,2]
[311121705,1704921038432,-5707.10907528,0.00022798,2]
[311121706,1704921038501,-30838.74066534,0.00022798,2]
[311121707,1704921038570,-2185.42717084,0.00022798,2]
[311121708,1704921038580,-25581.74695673,0.00022799,2]
[311121709,1704921038592,-23437.59734978,0.00022799,2]
[311121710,1704921038604,-80.65569349,0.00022799,2]
[311121711,1704921038614,-393.6836,0.00022799,2]
[311121712,1704921038624,-799.55014541,0.00022898,2]
[311121713,1704921038633,-544.16,0.00022898,2]
[311121714,1704921038643,-456.44,0.00022898,2]
[311121715,1704921038653,-1400.2786,0.000229,2]
[311121716,1704921038663,-1000.0,0.000229,2]
[311121717,1704921038672,-2500.0,0.000229,2]
[311121718,1704921038682,-323.43,0.000229,2]
[311121719,1704921038694,-47033.30794487,0.00023,2]
[311121982,1704921041278,-109506.93423407,0.00023,2]
[311121984,1704921041289,-1755.61,0.00023,2]
[311121986,1704921041300,-1576.33,0.00023,2]
[311121988,1704921041309,-231.0859352,0.00023,2]
[311121990,1704921041322,-268.9040648,0.00023,2]
[311121992,1704921041333,-1906.3,0.00023,2]
[311121994,1704921041342,-330.0,0.0002313,2]
[311121996,1704921041352,-200.0,0.00024042,2]
[311121998,1704921041362,-183.99,0.00024146,2]
[311122000,1704921041372,-1000.0,0.00024152,2]
[311122002,1704921041382,-556.92,0.00024172,2]
[311122004,1704921041392,-59.97385999,0.00024343,2]
[311122006,1704921041404,-140.02614001,0.00024343,2]
[311122009,1704921041415,-135.74585999,0.00024412,2]
[311122011,1704921041427,-1864.25414001,0.00024412,2]
[311122013,1704921041437,-157.52,0.00024456,2]
[311122015,1704921041449,-157.52,0.00024881,2]
[311122017,1704921041458,-662.75490726,0.00025,2]
[311122019,1704921041470,-3191.99940082,0.00025,2]
[311122022,1704921041481,-348.18,0.00025,2]
[311122032,1704921041570,-706.1713055,0.00025,2]
[311122034,1704921041582,-310.08111749,0.00025,2]
[311122037,1704921041594,-819.1372375,0.00025,2]
[311122039,1704921041605,-1254.14327998,0.00025,2]
[311122041,1704921041620,-342.25726553,0.00025,2]
[311122044,1704921041631,-1109.98814614,0.00025,2]
[311122045,1704921041642,-2002.75826668,0.00025,2]
[311122046,1704921041651,-350.0,0.00025,3]
[311122047,1704921041660,-1955.71,0.00025,2]
[311122048,1704921041669,-1000.0,0.00025,3]
[311122049,1704921041679,-2941.41,0.00025243,2]
[311122050,1704921041688,-2533.14,0.00025243,2]
[311122051,1704921041701,-157.52,0.00025306,2]
[311122052,1704921041711,-160.39254113,0.0002553,2]
[311122053,1704921041721,-999.99,0.0002553,2]
[311122054,1704921041730,-587.05849872,0.00025563,2]
[311122056,1704921041740,-261.27,0.0002573,2]
[311122058,1704921041750,-157.52,0.00025731,2]
[311122060,1704921041759,-250.0,0.00025997,2]
[311122062,1704921041770,-150.0,0.00026079,2]
[311122064,1704921041779,-7174.24335109,0.00026271,2]
[311122252,1704921043241,-6118.38618385,0.00026271,2]
[311122257,1704921043253,-392.28261728,0.00026271,2]
[311122268,1704921043302,-10215.08784778,0.00026271,2]
[311122271,1704921043311,-556.92,0.00026436,2]
[311122274,1704921043321,-250.0,0.00026485,2]
[311122277,1704921043330,-4054.12,0.00026575,2]
[311122280,1704921043339,-261.27,0.00026709,2]
[311122282,1704921043348,-400.0,0.00027,3]
[311122285,1704921043357,-1000.0,0.00027171,2]
[311122288,1704921043366,-250.0,0.00027397,2]
[311122290,1704921043375,-167.96,0.00027653,2]
[311122294,1704921043384,-150.99,0.00027653,2]
[311122297,1704921043393,-261.27,0.00027687,2]
[311122300,1704921043402,-357.8234487,0.00027874,2]
[311122303,1704921043412,-172.16,0.00028038,2]
[311122306,1704921043421,-160.39254113,0.0002836,2]
[311122308,1704921043430,-113.35931439,0.00028427,2]
[311122310,1704921043445,-473.69918433,0.00028427,2]
[311122312,1704921043454,-165.873,0.00028499,2]
[311122314,1704921043463,-2918.0,0.000285,2]
[311122317,1704921043472,-18196.0,0.000285,2]
[311122319,1704921043481,-645.76,0.00028527,2]
[311122321,1704921043490,-261.27,0.00028665,2]
[311122323,1704921043499,-1000.0,0.000287,2]
[311122325,1704921043508,-556.92,0.000287,2]
[311122327,1704921043517,-54045.78255855,0.000288,2]
[311122329,1704921043528,-651.06340159,0.000288,2]
[311122331,1704921043539,-717.71313702,0.000288,2]
[311122333,1704921043551,-1062.65962868,0.000288,2]
[311122336,1704921043562,-5025.98501384,0.000288,2]
[311122338,1704921043573,-4482.35371467,0.000288,2]
[311122340,1704921043583,-3369.26849374,0.000288,2]
[311122342,1704921043594,-5904.20578809,0.000288,2]
[311122345,1704921043605,-13828.01624812,0.000288,2]
[311122385,1704921043966,-7439.68939238,0.000288,2]
[311122388,1704921043978,-292.52957281,0.000288,2]
[311122390,1704921043989,-1138.75,0.000288,2]
[311122392,1704921044001,-13962.41174935,0.000288,2]
[311122647,1704921046279,-332.78229753,0.0002627,2]
[311122650,1704921046288,-1015.06563712,0.000288,2]
[311122655,1704921046300,-617.93168569,0.000288,2]
[311122663,1704921046348,-2722.97499637,0.000288,2]
[311122666,1704921046369,-261.60174887,0.000288,2]
[311122668,1704921046381,-669.51634058,0.000288,2]
[311122670,1704921046392,-2871.05493648,0.000288,2]
[311122686,1704921046529,-1689.05903743,0.000288,2]
[311122688,1704921046541,-2033.89446382,0.000288,2]
[311122691,1704921046553,-2498.60000001,0.000288,2]
[311122693,1704921046563,-68364.95795064,0.000288,2]
[311122695,1704921046575,-1798.51344613,0.000288,2]
[311122699,1704921046599,-48536.40105802,0.000288,2]
[311122701,1704921046608,-100000.0,0.000289,2]
[311122702,1704921046617,-167.96,0.00028953,2]
[311122703,1704921046627,-450.0,0.00029,3]
[311122704,1704921046636,-155.9,0.00029525,2]
[311122705,1704921046645,-261.27,0.00029644,2]
[311122706,1704921046654,-9616.48385844,0.000297,2]
[311122707,1704921046665,-7500.0,0.000297,2]
[311122708,1704921046674,-161.78168232,0.000297,2]
[311122709,1704921046683,-155.9,0.00029794,2]
[311122710,1704921046693,-270259.06969433,0.000298,2]
[311122713,1704921046719,-48184.57079344,0.000298,2]
[311122715,1704921046730,-3664.22241245,0.000298,2]
[311122717,1704921046743,-5008.10627754,0.000298,2]
[311123568,1704921055641,546.93748736,0.00022897,5]
[311123617,1704921101431,3671.23540962,0.00022695,4]
[311123618,1704921111149,222.50250077,0.00022469,4]
[311123619,1704921113827,1000.0,0.00022015,2]
[311123620,1704921121427,1790.09105799,0.00022696,4]
[311123621,1704921254097,656.51,0.00021216,2]
[311123622,1704921335727,200.0,0.00022388,2]
[311123623,1704921341287,2000.0,0.00022388,2]
[311123624,1704921382665,6711.83,0.00022218,2]
[311123625,1704921406668,400.0,0.00022218,2]
[311123626,1704921427242,154.63,0.00022296,2]
[311123627,1704921462579,200.0,0.00022139,2]
[311123628,1704921469241,1004.38,0.00022139,2]
[311123629,1704921473140,176.12,0.00022218,2]
[311123630,1704921477532,250.0,0.000192,2]
[311123631,1704921497884,2282.47,0.00022024,2]
[311123632,1704921502247,1090.29,0.00022081,2]
[311123633,1704921514685,672.67,0.00022024,2]
[311123634,1704921550742,23900.0,0.00022072,2]
[311123635,1704921607795,542.1674955,0.00021962,2]
[311123636,1704921607822,231.9725045,0.00021962,2]
[311123637,1704921618360,172.16,0.00022053,2]
[311123638,1704921620303,153.21,0.00021996,2]
[311123639,1704921620536,153.21,0.00022112,2]
[311123640,1704921620750,153.21,0.00022228,2]
[311123641,1704921621252,153.21,0.00022344,2]
[311123642,1704921621300,153.21,0.0002246,2]
[311123643,1704921635680,2705.0,0.00021854,2]
[311123644,1704921669893,397.97,0.00021886,2]
[311123645,1704921675672,651.53,0.00019918,2]
[311123646,1704921675870,651.53,0.00022182,2]
[311123647,1704921680452,7129.03,0.00021836,2]
[311123648,1704921704764,250.0,0.00021764,2]
[311123649,1704921709921,750.0,0.00021764,2]
[311123651,1704921719399,467.25,0.00021742,2]
[311123654,1704921775953,200.0,0.00021765,2]
[311123656,1704921825354,680.0,0.0002174,2]
[311123657,1704921827003,2000.0,0.0002174,2]
[311123658,1704921828789,656908.8565,0.00022493,2]
[311123708,1704921864507,500.0,0.00021762,2]
[311123727,1704921892479,176.12,0.00021766,2]
[311123728,1704921914134,200.0,0.00021825,2]
[311123730,1704921964280,222.18,0.00021795,2]
[311123732,1704922024122,23900.0,0.00021815,2]
[311123733,1704922028276,336.33,0.00021881,2]
[311123734,1704922030995,500.0,0.00022501,2]
[311123735,1704922069292,150.0,0.00022,2]
[311123736,1704922138554,160.80335094,0.00022415,2]
[311123737,1704922149561,157.89972811,0.00022493,2]
[311123738,1704922163277,586.37,0.00019897,2]
[311123739,1704922163481,586.37,0.00022161,2]
[311123740,1704922178108,371.43,0.00021869,2]
[311123743,1704922209798,200.0,0.00021841,2]
[311123745,1704922222113,167.96,0.00022028,2]
[311123746,1704922225681,250.0,0.0002181,2]
[311123786,1704922231381,-493.79950223,0.00022506,2]
[311123789,1704922231397,-326.50306657,0.00022507,2]
[311123792,1704922231406,-5738.12871883,0.00022507,2]
[311123793,1704922231417,-2264.87771596,0.00022507,2]
[311123794,1704922231428,-937.93475933,0.00022507,2]
[311123806,1704922232632,-314.08501124,0.00022505,2]
[311123807,1704922232653,-1495.10991762,0.00022505,2]
[311123808,1704922232668,-759.30541367,0.00022505,2]
[311123809,1704922232682,-571.97698041,0.00022505,2]
[311123810,1704922232693,-142.72214084,0.00022507,2]
[311123811,1704922232713,-5768.39902246,0.00022507,2]
[311123812,1704922232729,-10323.984658,0.00022507,2]
[311123813,1704922232739,-150.0,0.00022508,2]
[311123814,1704922232750,-150.0,0.00022508,2]
[311123815,1704922232763,-16739.78735962,0.00022508,2]
[311123816,1704922232777,-2616.11953545,0.00022509,2]
[311123817,1704922232789,-2611.62517321,0.00022509,2]
[311123818,1704922232800,-405.64689418,0.0002251,2]
[311123819,1704922232812,-3323.78268181,0.00022511,2]
[311123820,1704922233034,-2303.07507198,0.00022511,2]
[311123821,1704922233046,-155.21565838,0.00022515,2]
[311123822,1704922233057,-14160.83376585,0.00022517,2]
[311123823,1704922233068,-157.89972811,0.00022547,2]
[311123824,1704922233080,-1441.28732171,0.00022573,2]
[311123825,1704922233091,-153.21,0.00022575,2]
[311123826,1704922233102,-597.21,0.00022575,2]
[311123827,1704922233113,-164.40375951,0.00022581,2]
[311123828,1704922233125,-197.79593944,0.00022581,2]
[311123829,1704922233140,-2526.56254031,0.00022581,2]
[311123830,1704922233151,-2124.4944747,0.00022581,2]
[311123831,1704922233166,-256.92506171,0.00022581,2]
[311123832,1704922233178,-1906.3,0.00022581,2]
[311123833,1704922233189,-1310.51,0.00022581,2]
[311123834,1704922233201,-2014.78814012,0.00022583,2]
[311123835,1704922233212,-10090.48,0.00022583,2]
[311123836,1704922233223,-4745.06886019,0.00022586,2]
[311123837,1704922233234,-262.06194607,0.00022586,2]
[311123838,1704922233246,-270.2166863,0.00022586,2]
[311123839,1704922233259,-9999.99,0.00022593,2]
[311123840,1704922233271,-499.99,0.00022593,2]
[311123841,1704922233283,-1466.7455,0.00022597,2]
[311123842,1704922233294,-1000.0,0.00022597,2]
[311123843,1704922233307,-2500.0,0.00022597,2]
[311123844,1704922233318,-157.89972811,0.000226,2]
[311123845,1704922233330,-153.21,0.00022691,2]
[311123846,1704922233349,-1069.15058471,0.00022696,2]
[311123847,1704922233362,-580.66182185,0.00022696,2]
[311123848,1704922233374,-155.0,0.00022697,2]
[311123849,1704922233393,-6425.39523629,0.00022697,2]
[311123850,1704922233413,-1473.6504704,0.00022697,2]
[311123851,1704922233433,-503.15432782,0.00022697,2]
[311123852,1704922233448,-3984.1450595,0.00022697,2]
[311123853,1704922233463,-4565.4,0.00022697,2]
[311123854,1704922233477,-1003.8665897,0.00022697,2]
[311123855,1704922233490,-3414.01268206,0.00022697,2]
[311123856,1704922233513,-334.50747262,0.00022697,2]
[311123857,1704922233527,-56201.39293722,0.00022697,2]
[311123858,1704922233543,-2264.3090581,0.00022697,2]
[311123860,1704922233559,-517.82129114,0.00022697,2]
[311123862,1704922233572,-1071.62439854,0.00022697,2]
[311123865,1704922233586,-4517.25624389,0.00022697,2]
[311123866,1704922233600,-1027.99608678,0.00022697,2]
[311123869,1704922233623,-1071.35837695,0.00022697,2]
[311123871,1704922233639,-1062.38997499,0.00022697,2]
[311123876,1704922233688,-84157.21692536,0.00022697,2]
[311123878,1704922233701,-1877.92468453,0.00022697,2]
[311123880,1704922233715,-4528.27391062,0.00022697,2]
[311123882,1704922233734,-821.43142574,0.00022697,2]
[311123885,1704922233751,-2516.89999995,0.00022697,2]
[311123887,1704922233772,-252.27,0.00022697,2]
[311123889,1704922233786,-819.09312441,0.00022697,2]
[311123891,1704922233800,-27620.12637236,0.00022697,2]
[311123892,1704922233813,-9040.24885938,0.00022697,2]
[311123894,1704922233827,-637.6738882,0.00022697,2]